bitfinex/quotes_SOLUSD_20250917
["timestamp","ask_amount","ask_price","bid_price","bid_amount"]
[1758087223021,0.68000001,234.02,233.99,19.94219381]
[1758087223221,0.68,234.01,234.0,33.32]
[1758087224425,0.68,234.01,234.0,37.59350427]
[1758087225323,1e-08,234.02,234.0,40.34656505]
[1758087225524,1e-08,234.02,234.01,2.07306078]
[1758087226606,1e-08,234.02,234.01,6.34638243]
[1758087227323,1e-08,234.02,234.01,4.27332165]
[1758087227507,0.68000001,234.02,234.01,6.34638243]
[1758087228506,0.68000001,234.02,234.0,39.66648486]
[1758087228711,1e-08,234.02,234.01,33.32]
[1758087229427,0.68000001,234.02,234.01,33.32]
[1758087233433,1e-08,234.02,234.01,35.39306078]
[1758087233624,1e-08,234.02,234.01,39.66638243]
[1758087233822,1e-08,234.02,234.01,35.39306078]
[1758087234225,0.68000001,234.02,234.01,35.39306078]
[1758087234535,0.68000001,234.02,234.01,33.32]
[1758087234736,1e-08,234.02,234.01,33.32]
[1758087234940,0.68000001,234.02,234.01,33.32]
[1758087235245,1e-08,234.02,234.01,33.32]
[1758087235940,1e-08,234.02,234.01,39.66638243]
[1758087236444,1e-08,234.02,234.01,33.32]
[1758087236634,0.71000001,234.02,233.96,0.06]
[1758087236839,0.71000001,234.02,233.97,35.37306078]
[1758087237035,0.71,234.01,233.98,2.07306078]
[1758087237389,0.71,234.01,233.99,33.3]
[1758087238344,1e-08,234.02,233.99,33.3]
[1758087238839,0.71000001,234.02,233.99,33.3]
[1758087239022,1e-08,234.02,234.0,4.27350427]
[1758087239220,1e-08,234.02,234.01,35.37306078]
[1758087239440,1e-08,234.02,234.01,36.03306078]
[1758087240741,1e-08,234.02,234.01,35.37306078]
[1758087242825,1e-08,234.02,234.01,33.3]
[1758087243032,0.71000001,234.02,234.01,33.3]
[1758087243231,1e-08,234.02,234.01,33.3]
[1758087243550,1e-08,234.02,234.01,33.96]
[1758087244449,1e-08,234.02,234.01,33.3]
[1758087247133,1e-08,234.02,234.01,37.57332165]
[1758087249958,1e-08,234.02,234.01,38.23332165]
[1758087251460,1e-08,234.02,234.01,37.57332165]
[1758087253056,1e-08,234.02,234.01,33.3]
[1758087253664,0.71000001,234.02,233.96,0.06]
[1758087253867,0.71000001,234.02,233.96,1.38649486]
[1758087254037,0.71000001,234.02,233.97,33.28]
[1758087254038,0.71,234.01,233.97,33.28]
[1758087254237,1e-08,234.02,233.97,33.28]
[1758087254563,1e-08,234.02,233.96,0.06]
[1758087254564,1.32649486,233.99,233.96,0.06]
[1758087254881,4.27405222,233.97,233.96,0.06]
[1758087255235,32.31054708,233.97,233.96,0.06]
[1758087256781,6.31054708,233.97,233.96,0.06]
[1758087256976,6.59487022,233.97,233.96,0.06]
[1758087257880,39.87487022,233.97,233.96,0.06]
[1758087258661,38.26405222,233.97,233.96,0.06]
[1758087258981,26.0,233.97,233.96,0.06]
[1758087259359,6.31034192,233.99,233.96,0.06]
[1758087259757,1.32649486,233.97,233.96,0.06]
[1758087260283,0.71,233.97,233.96,0.06]
[1758087260978,6.31054708,233.97,233.96,0.06]
[1758087262483,5.60054708,233.97,233.96,0.06]
[1758087262979,6.31054708,233.97,233.96,0.06]
[1758087263182,31.60054708,233.97,233.96,0.06]
[1758087263680,30.27405222,233.97,233.96,0.06]
[1758087263884,30.98405222,233.97,233.96,0.06]
[1758087264879,30.27405222,233.97,233.96,0.06]
[1758087265884,26.0,233.97,233.96,0.06]
[1758087266272,2.00649486,233.99,233.96,0.06]
[1758087266473,38.88022239,233.99,233.96,0.06]
[1758087266672,1.32649486,233.98,233.96,0.06]
[1758087266868,1.32649486,234.0,233.96,0.06]
[1758087267070,26.0,233.99,233.97,0.71]
[1758087267566,26.0,234.0,233.97,0.71]
[1758087268467,30.27351281,234.0,233.97,0.71]
[1758087268672,30.27351281,234.0,233.96,0.06]
[1758087268884,30.27351281,234.0,233.96,0.77]
[1758087269669,4.27351281,234.0,233.96,0.77]
[1758087270287,1.32649486,234.01,233.96,0.06]
[1758087270481,5.5998355,234.01,233.97,0.71]
[1758087271690,6.2798355,234.01,233.96,0.06]
[1758087271893,6.2798355,234.01,233.97,0.71]
[1758087271894,5.5998355,234.01,233.97,0.71]
[1758087272275,28.00649487,234.02,233.97,0.71]
[1758087272467,28.00649487,234.02,233.96,4.33421149]
[1758087272468,27.32649487,234.02,233.96,4.33421149]
[1758087272673,27.32649487,234.02,233.99,1.32649486]
[1758087272674,1e-08,234.02,233.99,1.32649486]
[1758087272893,1e-08,234.02,234.01,1.32649486]
[1758087273066,1e-08,234.02,234.01,14.92208887]
[1758087273268,1e-08,234.02,234.01,15.63208887]
[1758087273590,1e-08,234.02,233.98,1.32649486]
[1758087273770,1e-08,234.02,233.98,0.71]
[1758087274105,1e-08,234.02,233.99,0.71]
[1758087274685,1e-08,234.02,234.0,0.71]
[1758087275193,1e-08,234.02,234.01,0.71]
[1758087275375,1e-08,234.02,234.01,2.03649486]
[1758087276280,1e-08,234.02,234.01,6.30981651]
[1758087278195,1e-08,234.02,233.99,1.32649486]
[1758087278387,1e-08,234.02,234.0,0.71]
[1758087278795,1e-08,234.02,234.01,0.71]
[1758087280200,1e-08,234.02,234.01,2.03649486]
[1758087281083,1e-08,234.02,234.01,0.71]
[1758087285202,1e-08,234.02,233.98,2.03649486]
[1758087285678,1e-08,234.02,233.99,0.71]
[1758087285881,1e-08,234.02,233.97,1.38649486]
[1758087286201,1e-08,234.02,233.98,0.71]
[1758087288406,1e-08,234.02,233.99,0.71]
[1758087290104,1e-08,234.02,234.0,0.71]
[1758087290317,1e-08,234.02,234.0,2.03649486]
[1758087290606,1e-08,234.02,234.01,1.32649486]
[1758087290782,1e-08,234.02,234.01,2.03649486]
[1758087291805,1e-08,234.02,234.01,6.30981651]
[1758087293694,1e-08,234.02,234.01,53.14541052]
[1758087299224,1e-08,234.02,234.01,53.42973366]
[1758087310018,1e-08,234.02,234.01,54.1751647]
[1758087318404,0.03,234.04,234.03,39.87991715]
[1758087318709,0.2,234.06,234.05,0.28432314]
[1758087318911,0.2,234.06,234.05,49.81184305]
[1758087319510,0.2,234.06,234.05,54.08443437]
[1758087324334,1e-08,234.06,234.05,54.08443437]
[1758087324703,1e-08,234.06,234.05,57.59436407]
[1758087327322,0.03,234.07,234.06,13.87991715]
[1758087327515,0.03,234.07,234.06,16.63184305]
[1758087328424,0.03,234.07,234.06,20.90425183]
[1758087329436,0.03,234.07,234.06,54.10425183]
[1758087331427,0.03,234.07,234.06,54.08425183]
[1758087333523,0.03,234.07,234.06,20.90425183]
[1758087333738,0.03,234.07,234.06,54.08425183]
[1758087337540,0.03,234.07,234.06,52.01232593]
[1758087337845,0.03,234.07,234.06,54.08425183]
[1758087339441,0.03,234.09,234.08,39.87991715]
[1758087339642,0.03,234.09,234.08,75.13184305]
[1758087339839,0.03,234.09,234.08,80.08388679]
[1758087342655,0.03,234.11,234.09,13.87991715]
[1758087342854,0.03,234.11,234.1,49.11184305]
[1758087343156,0.03,234.11,234.1,49.79184305]
[1758087344431,0.03,234.11,234.1,54.06352181]
[1758087348153,0.03,234.11,234.1,53.38352181]
[1758087349754,0.03,234.11,234.1,54.06352181]
[1758087350136,0.03,234.11,234.1,51.99159591]
[1758087350334,0.03,234.11,234.1,54.06352181]
[1758087350742,0.03,234.11,234.1,53.38352181]
[1758087351054,0.03,234.11,234.1,51.31159591]
[1758087351239,0.03,234.11,234.1,53.38352181]
[1758087351765,0.03,234.11,234.1,54.06352181]
[1758087359453,0.03,234.14,234.13,41.95184305]
[1758087359652,0.03,234.14,234.13,75.09184305]
[1758087360970,0.03,234.14,234.13,79.36297447]
[1758087362642,0.03,234.14,234.13,92.8055913]
[1758087362873,0.03,234.14,234.13,94.8775172]
[1758087364460,0.03,234.14,234.13,92.8055913]
[1758087365064,0.03,234.14,234.13,94.8775172]
[1758087371574,0.03,234.14,234.13,56.8836654]
[1758087371755,0.03,234.14,234.13,91.32813959]
[1758087373271,0.74,234.14,234.13,91.18597802]
[1758087373453,0.74,234.14,234.13,65.32813959]
[1758087374467,0.03,234.14,234.13,65.04381645]
[1758087374774,0.03,234.14,234.13,65.32813959]
[1758087376162,0.03,234.14,234.13,71.33603635]
[1758087377276,0.03,234.14,234.13,70.62603635]
[1758087377491,0.03,234.14,234.13,71.33603635]
[1758087377780,0.03,234.14,234.13,65.32813959]
[1758087378466,0.03,234.14,234.13,71.33603635]
[1758087380469,0.03,234.17,234.16,41.20439134]
[1758087380671,0.03,234.17,234.16,74.30439134]
[1758087380853,0.03,234.17,234.16,75.01439134]
[1758087381960,0.03,234.17,234.16,79.28497555]
[1758087383887,0.71,234.23,234.22,0.28432314]
[1758087384174,0.71,234.23,234.22,48.30439134]
[1758087385565,0.71,234.23,234.22,52.57388156]
[1758087387113,1.32447419,234.31,234.22,46.97991715]
[1758087387386,1.32447419,234.31,234.23,33.1]
[1758087387387,1.32447419,234.28,234.23,33.1]
[1758087387684,0.69,234.27,234.23,33.1]
[1758087387866,0.69,234.26,234.23,33.1]
[1758087388063,0.69,234.25,234.23,33.1]
[1758087388269,0.69,234.24,234.23,34.42447419]
[1758087388582,0.69,234.24,234.23,52.28937614]
[1758087388791,0.69,234.26,234.24,13.59559401]
[1758087388970,5.5925051,234.31,234.25,33.1]
[1758087389288,1.32447419,234.3,234.25,33.1]
[1758087389485,0.69,234.29,234.25,33.1]
[1758087389666,0.69,234.28,234.25,33.1]
[1758087389989,0.69,234.27,234.25,33.1]
[1758087390173,0.69,234.26,234.25,33.1]
[1758087390377,0.69,234.26,234.23,1.32447419]
[1758087390686,0.69,234.25,234.24,33.08]
[1758087391573,0.69,234.25,234.2,26.0]
[1758087391890,0.69,234.24,234.21,33.08]
[1758087392091,0.69,234.23,234.21,33.08]
[1758087392294,0.69,234.22,234.21,33.08]
[1758087392980,0.69,234.22,234.2,26.0]
[1758087393180,4.26896784,234.25,234.21,33.08]
[1758087393378,5.59319078,234.27,234.21,34.40447419]
[1758087393692,0.69,234.26,234.21,34.40447419]
[1758087394011,0.69,234.25,234.21,34.40447419]
[1758087394296,0.69,234.24,234.21,34.40447419]
[1758087394596,0.69,234.23,234.21,34.40447419]
[1758087394897,0.69,234.25,234.21,34.40447419]
[1758087395072,0.69,234.24,234.21,34.40447419]
[1758087395274,0.69,234.23,234.21,34.40447419]
[1758087395686,0.69,234.22,234.21,33.08]
[1758087396603,4.95952413,234.22,234.21,33.08]
[1758087396774,6.28399832,234.22,234.21,33.08]
[1758087400090,0.69,234.22,234.21,33.08]
[1758087400708,0.69,234.24,234.21,33.08]
[1758087401077,0.03,234.25,234.21,33.08]
[1758087401293,0.72,234.25,234.21,33.08]
[1758087403494,0.69,234.24,234.21,33.08]
[1758087404295,0.69,234.23,234.21,33.08]
[1758087404497,4.98898886,234.25,234.21,33.08]
[1758087404687,0.69,234.24,234.21,33.08]
[1758087405203,4.29898886,234.25,234.21,33.08]
[1758087405500,4.98898886,234.25,234.21,33.08]
[1758087405799,0.03,234.25,234.22,0.66]
[1758087406001,0.72,234.25,234.21,33.08]
[1758087406206,4.98895109,234.25,234.2,1.98447419]
[1758087406376,5.62342528,234.25,234.22,33.06]
[1758087406706,2.01447419,234.24,234.22,33.06]
[1758087406887,4.95930794,234.23,234.22,33.06]
[1758087407274,6.28378213,234.23,234.22,33.06]
[1758087408799,4.95930794,234.23,234.22,33.06]
[1758087410988,4.26930794,234.23,234.22,33.06]
[1758087413301,4.26912568,234.24,234.22,33.06]
[1758087421720,0.03,234.25,234.23,0.68]
[1758087422699,0.03,234.25,234.24,0.68]
[1758087424026,0.75,234.25,234.22,33.06]
[1758087424225,1.32447419,234.24,234.21,33.04]
[1758087424524,1.32447419,234.24,234.21,33.72]
[1758087425094,1.32447419,234.24,234.22,0.68]
[1758087425322,4.26930794,234.23,234.22,0.68]
[1758087425696,4.26930794,234.23,234.21,33.04]
[1758087425896,4.26930794,234.23,234.21,33.72]
[1758087426691,4.26930794,234.23,234.21,0.68]
[1758087429136,4.26930794,234.23,234.2,33.72]
[1758087429341,1.32447419,234.21,234.17,0.74]
[1758087429500,1.32447419,234.19,234.17,0.06]
[1758087429702,1.32447419,234.18,234.17,0.06]
[1758087431306,5.59469367,234.18,234.17,0.06]
[1758087431917,6.31469367,234.18,234.17,0.06]
[1758087432214,4.99021948,234.18,234.17,0.06]
[1758087432404,6.31469367,234.18,234.17,0.06]
[1758087433814,7.06139111,234.18,234.17,0.06]
[1758087436729,6.34139111,234.18,234.17,0.06]
[1758087437024,2.07117163,234.21,234.17,0.74]
[1758087437413,131.7,234.23,234.17,2.81117163]
[1758087437725,131.7,234.23,234.19,2.07117163]
[1758087437932,135.96931316,234.23,234.2,0.68]
[1758087438512,138.04048479,234.23,234.18,0.68]
[1758087438741,138.04048479,234.23,234.19,0.68]
[1758087439323,138.04048479,234.23,234.2,0.68]
[1758087439932,138.04048479,234.23,234.21,0.68]
[1758087441821,131.7,234.23,234.22,0.68]
[1758087444239,131.7,234.23,234.2,0.68]
[1758087444609,138.04065038,234.23,234.17,0.06]
[1758087444815,138.76065038,234.23,234.17,2.81117163]
[1758087445131,2.07117163,234.22,234.17,0.74]
[1758087445431,138.04065038,234.23,234.18,0.71]
[1758087445637,138.04065038,234.23,234.19,0.71]
[1758087446033,138.04065038,234.23,234.17,2.13117163]
[1758087446230,138.04065038,234.23,234.18,0.71]
[1758087446427,131.7,234.23,234.19,2.07117163]
[1758087446642,131.7,234.23,234.2,2.78117163]
[1758087446831,131.7,234.23,234.22,2.07117163]
[1758087447040,0.03,234.24,234.22,2.78117163]
[1758087447415,0.03,234.24,234.23,0.71]
[1758087448539,0.03,234.24,234.23,7.05047957]
[1758087450231,0.03,234.24,234.23,2.78117163]
[1758087450433,0.03,234.24,234.23,0.71]
[1758087450752,0.03,234.24,234.2,35.80117163]
[1758087450930,0.03,234.24,234.21,0.71]
[1758087451631,0.03,234.24,234.2,33.02]
[1758087451833,0.03,234.24,234.21,0.71]
[1758087452530,0.03,234.24,234.22,0.71]
[1758087453633,0.03,234.24,234.23,0.71]
[1758087454548,0.03,234.24,234.23,2.78117163]
[1758087455122,0.03,234.24,234.23,7.05047957]
[1758087455530,0.03,234.24,234.22,2.07117163]
[1758087455737,0.03,234.24,234.21,2.78117163]
[1758087456132,0.03,234.24,234.22,0.71]
[1758087456340,0.03,234.24,234.21,0.71]
[1758087458050,0.03,234.24,234.22,0.71]
[1758087458930,0.03,234.24,234.23,0.71]
[1758087459244,0.03,234.24,234.2,39.34102314]
[1758087459545,0.03,234.24,234.21,0.71]
[1758087460523,0.03,234.24,234.22,0.71]
[1758087461346,0.03,234.24,234.23,0.71]
[1758087462835,0.03,234.25,234.23,0.71]
[1758087462836,0.03,234.25,234.24,4.26912568]
[1758087463160,0.03,234.25,234.24,53.22021446]
[1758087463330,0.03,234.25,234.24,55.63983535]
[1758087469456,0.03,234.25,234.24,22.35551221]
[1758087469635,0.03,234.25,234.24,40.03029731]
[1758087470460,0.03,234.25,234.24,53.76805289]
[1758087470660,0.03,234.25,234.24,53.91021446]
[1758087471969,0.03,234.25,234.24,55.67987189]
[1758087474962,0.03,234.25,234.24,53.60870026]
[1758087475257,0.03,234.25,234.24,55.67987189]
[1758087485876,0.03,234.25,234.24,22.69987189]
[1758087486048,0.03,234.25,234.24,55.65987189]
[1758087487594,0.03,234.25,234.24,54.94987189]
[1758087487750,0.03,234.25,234.24,21.98987189]
[1758087487951,0.03,234.25,234.24,55.60987189]
[1758087488468,0.03,234.25,234.24,54.66554875]
[1758087489472,0.03,234.25,234.24,55.32554875]
[1758087489674,0.74,234.25,234.24,19.63437712]
[1758087489874,0.74,234.25,234.24,26.06]
[1758087490066,0.74,234.25,234.24,63.28912568]
[1758087490266,0.03,234.25,234.24,63.28912568]
[1758087490595,0.03,234.25,234.24,79.61589132]
[1758087490772,0.03,234.25,234.24,80.66562183]
[1758087492079,0.03,234.25,234.24,81.32562183]
[1758087493692,0.03,234.25,234.24,81.60994497]
[1758087495771,0.03,234.25,234.24,80.86217682]
[1758087504773,0.03,234.25,234.24,80.18217682]
[1758087505994,0.74,234.25,234.24,78.18812317]
[1758087506289,0.03,234.25,234.24,78.18812317]
[1758087511082,0.03,234.25,234.24,76.86471969]
[1758087511282,0.03,234.25,234.24,78.18812317]
[1758087511795,0.03,234.25,234.24,78.89812317]
[1758087511995,0.03,234.25,234.24,79.18244631]
[1758087512499,0.03,234.25,234.24,80.89203066]
[1758087513597,0.03,234.25,234.24,79.56862718]
[1758087513799,0.03,234.25,234.24,80.89203066]
[1758087514200,0.03,234.25,234.24,80.18203066]
[1758087515299,0.03,234.25,234.24,80.89203066]
[1758087525912,0.03,234.27,234.24,80.89203066]
[1758087525913,1e-08,234.27,234.25,13.87991715]
[1758087526100,1e-08,234.27,234.26,53.41693455]
[1758087526508,1e-08,234.27,234.26,55.83622669]
[1758087526885,1e-08,234.27,234.26,60.10498789]
[1758087530692,1e-08,234.27,234.26,54.81137397]
[1758087535308,1e-08,234.27,234.26,19.85797049]
[1758087535505,1e-08,234.27,234.26,54.10137397]
[1758087535998,1e-08,234.27,234.26,54.80137397]
[1758087538816,1e-08,234.27,234.26,54.10137397]
[1758087541624,1e-08,234.27,234.26,54.80137397]
[1758087544926,1e-08,234.27,234.26,54.86137397]
[1758087557760,1e-08,234.27,234.26,55.60515485]
[1758087570659,1e-08,234.27,234.26,57.67233921]
[1758087575442,1e-08,234.27,234.26,53.53797049]
[1758087575765,1e-08,234.27,234.26,57.67233921]
[1758087577163,1e-08,234.27,234.26,55.60515485]
[1758087577353,1e-08,234.27,234.26,54.90515485]
[1758087577674,1e-08,234.27,234.26,55.61515485]
[1758087578363,1e-08,234.27,234.26,57.68233921]
[1758087579664,1e-08,234.29,234.28,26.0]
[1758087579962,142.36334436,234.45,234.31,39.59559401]
[1758087579963,135.96548209,234.45,234.31,39.59559401]
[1758087580263,0.65,234.36,234.31,74.80710151]
[1758087580564,0.65,234.36,234.31,75.51710151]
[1758087580951,0.65,234.36,234.31,77.22639365]
[1758087581338,0.65,234.36,234.31,81.49424393]
[1758087587071,0.65,234.34,234.31,80.78424393]
[1758087589963,0.65,234.36,234.31,80.78424393]
[1758087590356,0.65,234.36,234.31,81.49424393]
[1758087592067,0.65,234.35,234.31,81.49424393]
[1758087592571,0.65,234.35,234.31,80.78424393]
[1758087592876,0.68,234.32,234.31,47.92424393]
[1758087593069,0.03,234.32,234.31,80.76424393]
[1758087593373,0.03,234.32,234.31,81.47424393]
[1758087594283,0.03,234.32,234.31,79.40705957]
[1758087594457,0.03,234.32,234.31,81.47424393]
[1758087603869,0.03,234.32,234.31,80.76424393]
[1758087604384,0.03,234.37,234.36,0.28432314]
[1758087604559,0.03,234.37,234.36,48.78710151]
[1758087604761,0.71,234.37,234.36,53.05404126]
[1758087605284,0.71,234.37,234.36,55.12122562]
[1758087605875,0.71,234.37,234.36,67.68252131]
[1758087606075,0.03,234.37,234.36,67.68252131]
[1758087606277,0.71,234.37,234.36,67.68252131]
[1758087606582,0.71,234.37,234.36,93.68252131]
[1758087607713,0.71,234.37,234.36,91.61533695]
[1758087607891,0.71,234.37,234.36,93.68252131]
[1758087608188,13.87991715,234.53,234.52,20.4643426]
[1758087608391,13.87991715,234.53,234.42,32.82]
[1758087608983,28.80338109,234.53,234.42,32.82]
[1758087609190,2.06718436,234.44,234.41,45.63585749]
[1758087609366,131.7,234.51,234.41,45.63585749]
[1758087609571,2.06718436,234.45,234.41,45.63585749]
[1758087610084,2.29718436,234.45,234.41,32.82]
[1758087610268,2.29718436,234.45,234.41,45.63585749]
[1758087611482,2.06718436,234.45,234.41,45.63585749]
[1758087612096,2.06718436,234.45,234.41,49.90188392]
[1758087612270,13.04585749,234.49,234.41,49.90188392]
[1758087612468,2.06718436,234.47,234.41,49.90188392]
[1758087614101,2.09718436,234.47,234.41,49.90188392]
[1758087614688,131.7,234.46,234.41,49.90188392]
[1758087617888,110.39157365,234.46,234.42,21.80504699]
[1758087618292,110.39157365,234.46,234.43,32.82]
[1758087618484,110.39157365,234.46,234.44,21.38687135]
[1758087619095,0.03,234.47,234.46,35.18541446]
[1758087619596,0.03,234.47,234.46,35.90541446]
[1758087619799,0.03,234.47,234.46,54.58661057]
[1758087621799,110.39157365,234.57,234.49,26.0]
[1758087622115,110.39157365,234.57,234.52,1.32082114]
[1758087622406,110.39157365,234.57,234.53,32.82]
[1758087622617,0.23,234.56,234.53,32.82]
[1758087622814,0.23,234.55,234.53,32.82]
[1758087623515,0.23,234.54,234.53,32.82]
[1758087623801,0.23,234.54,234.51,21.04885597]
[1758087623979,111.71239479,234.57,234.51,21.04885597]
[1758087624178,0.23,234.53,234.51,21.04885597]
[1758087625309,0.23,234.56,234.51,21.04885597]
[1758087625609,0.23,234.55,234.51,21.04885597]
[1758087625990,110.62157365,234.57,234.51,21.04885597]
[1758087626502,110.39157365,234.56,234.51,21.04885597]
[1758087627404,110.39157365,234.56,234.51,22.36967711]
[1758087630115,110.62157365,234.56,234.51,22.36967711]
[1758087630282,110.39157365,234.56,234.51,22.36967711]
[1758087630709,110.39157365,234.56,234.51,1.32082114]
[1758087631603,0.23,234.55,234.51,1.32082114]
[1758087632407,110.62157365,234.54,234.5,32.82]
[1758087632593,110.39157365,234.54,234.5,32.82]
[1758087634919,0.26,234.56,234.36,0.06]
[1758087634920,20.0,234.46,234.36,0.06]
[1758087635236,20.0,234.37,234.36,0.05]
[1758087635410,21.06885118,234.37,234.36,0.05]
[1758087635609,59.11361826,234.37,234.36,0.05]
[1758087635790,66.38809634,234.37,234.36,0.05]
[1758087635988,68.09782685,234.37,234.36,0.05]
[1758087637194,72.45088931,234.37,234.36,0.05]
[1758087638901,72.73521245,234.37,234.36,0.05]
[1758087639212,86.33080646,234.37,234.36,0.05]
[1758087644220,68.94964766,234.37,234.36,0.05]
[1758087644605,68.92964766,234.37,234.36,0.05]
[1758087645022,35.58964766,234.37,234.36,0.05]
[1758087645228,68.92964766,234.37,234.36,0.05]
[1758087646211,68.90964766,234.37,234.36,0.05]
[1758087646730,35.58964766,234.37,234.36,0.05]
[1758087647030,68.90964766,234.37,234.36,0.05]
[1758087647612,35.58964766,234.37,234.36,0.05]
[1758087647817,68.88964766,234.37,234.36,0.05]
[1758087652743,35.58964766,234.37,234.36,0.05]
[1758087652915,68.86964766,234.37,234.36,0.05]
[1758087654132,54.98973051,234.37,234.36,0.72]
[1758087654330,55.27405365,234.37,234.36,0.05]
[1758087657641,55.27405365,234.37,234.36,0.76]
[1758087658012,55.27405365,234.37,234.36,0.05]
[1758087661646,55.27405365,234.37,234.36,0.76]
[1758087661852,55.27405365,234.37,234.36,0.05]
[1758087662034,21.99405365,234.37,234.36,0.05]
[1758087662221,55.19405365,234.37,234.36,0.05]
[1758087668254,54.88973051,234.37,234.36,0.76]
[1758087669348,54.88973051,234.37,234.36,0.05]
[1758087669547,68.76964766,234.37,234.36,0.05]
[1758087674034,131.93432314,234.35,234.34,0.71]
[1758087674233,165.05432314,234.35,234.34,0.71]
[1758087674639,166.76434601,234.35,234.34,0.71]
[1758087677552,166.48002287,234.35,234.34,0.71]
[1758087678068,133.36002287,234.35,234.34,0.71]
[1758087678245,166.46002287,234.35,234.34,0.71]
[1758087679366,133.36002287,234.35,234.34,0.71]
[1758087679551,166.46002287,234.35,234.34,0.71]
[1758087679949,33.87991715,234.34,234.33,0.06]
[1758087680142,46.28432314,234.32,234.31,0.06]
[1758087680365,82.98467604,234.32,234.31,0.06]
[1758087680945,92.97991715,234.32,234.31,0.06]
[1758087681371,81.09456535,234.32,234.31,0.77]
[1758087681640,79.38432314,234.32,234.31,0.77]
[1758087682046,79.38432314,234.32,234.31,0.06]
[1758087682247,82.98288607,234.32,234.31,0.06]
[1758087683767,84.69320141,234.32,234.31,0.06]
[1758087684355,131.58,234.3,234.29,0.71]
[1758087684555,26.0,234.28,234.27,0.06]
[1758087684864,59.08,234.28,234.27,0.06]
[1758087685067,59.08,234.28,234.27,0.77]
[1758087689862,59.08,234.28,234.27,0.06]
[1758087690371,59.36432314,234.28,234.27,0.06]
[1758087690768,59.36432314,234.28,234.27,0.73]
[1758087691151,59.34432314,234.28,234.27,0.73]
[1758087692064,26.28432314,234.28,234.27,0.73]
[1758087692282,59.34432314,234.28,234.27,0.73]
[1758087692760,26.28432314,234.28,234.27,0.73]
[1758087692965,59.32432314,234.28,234.27,0.73]
[1758087696364,59.32432314,234.28,234.27,0.06]
[1758087700095,26.28432314,234.28,234.27,0.06]
[1758087700686,59.28432314,234.28,234.27,0.06]
[1758087701487,26.28432314,234.28,234.27,0.06]
[1758087701662,59.28432314,234.28,234.27,0.06]
[1758087703895,26.28432314,234.28,234.27,0.06]
[1758087704064,59.26432314,234.28,234.27,0.73]
[1758087706686,26.28432314,234.28,234.27,0.73]
[1758087706874,59.26432314,234.28,234.27,0.06]
[1758087707075,79.26432314,234.28,234.27,0.06]
[1758087709688,79.26432314,234.28,234.25,0.06]
[1758087709689,131.86432314,234.26,234.25,0.73]
[1758087709983,59.24432314,234.26,234.25,0.73]
[1758087710592,59.24432314,234.26,234.25,0.06]
[1758087710892,0.28432314,234.25,234.24,0.06]
[1758087711078,0.28432314,234.25,234.24,0.73]
[1758087711699,33.28432314,234.25,234.24,0.73]
[1758087714795,59.28432314,234.25,234.24,0.73]
[1758087719398,59.28432314,234.25,234.24,0.06]
[1758087720086,59.28432314,234.25,234.24,0.77]
[1758087720281,59.28432314,234.25,234.24,0.06]
[1758087720595,72.87991715,234.25,234.24,0.06]
[1758087720978,76.4706485,234.25,234.24,0.06]
[1758087721494,131.80432314,234.22,234.21,0.06]
[1758087721698,164.78432314,234.22,234.21,0.77]
[1758087723071,131.80432314,234.22,234.21,0.77]
[1758087723404,164.76432314,234.22,234.21,0.77]